bitfinex/quotes_ETHUSD_20240530
["timestamp","ask_amount","ask_price","bid_price","bid_amount"]
[1717053337275,0.55,3748.7,3747.9,1.29789222]
[1717053337484,0.55,3748.8,3747.9,1.29789222]
[1717053337716,1.93945919,3748.7,3747.9,1.61677256]
[1717053338021,0.55,3748.6,3747.9,1.61677256]
[1717053338518,1.951,3748.6,3747.6,1.60102]
[1717053338678,0.55,3748.5,3747.6,2.89891222]
[1717053339090,3.55,3748.5,3747.6,2.89891222]
[1717053340219,0.55,3748.5,3747.6,2.89891222]
[1717053340468,1.12724467,3748.8,3747.6,2.89891222]
[1717053340666,4.12724467,3748.8,3747.7,0.34625574]
[1717053340822,0.57724467,3748.7,3747.7,0.34625574]
[1717053341022,0.55,3748.6,3747.7,0.34625574]
[1717053341749,0.55,3748.6,3747.8,1.29789222]
[1717053342249,3.0,3748.8,3747.8,1.29789222]
[1717053342423,7.38,3749.6,3748.0,2.9161]
[1717053342621,1.93939504,3749.5,3748.2,1.60074]
[1717053342821,1.93939504,3749.4,3748.3,1.29789222]
[1717053343046,1.60012,3749.8,3748.3,1.29789222]
[1717053343244,1.60017,3749.6,3748.3,1.87936544]
[1717053344265,0.55,3749.5,3748.3,1.87936544]
[1717053348976,0.55,3749.5,3748.4,1.60064]
[1717053349195,0.55,3749.5,3748.5,1.29789222]
[1717053349353,1.951,3749.9,3748.7,2.7233]
[1717053349698,1.59996,3750.1,3748.9,1.60046]
[1717053350193,1.60008,3749.8,3748.7,2.7233]
[1717053350989,0.55,3749.7,3748.7,2.7233]
[1717053353362,1.60008,3749.8,3748.8,1.29789222]
[1717053353570,1.951,3750.2,3748.8,2.89837222]
[1717053353781,2.52808428,3750.2,3748.9,0.56216722]
[1717053353953,0.57708428,3750.2,3749.0,1.29789222]
[1717053354156,6.55088,3750.3,3749.0,1.29789222]
[1717053355197,6.55088,3750.3,3749.1,1.60037]
[1717053355198,1.59988,3750.3,3749.1,1.60037]
[1717053355353,1.59988,3750.3,3749.2,1.64393516]
[1717053356386,0.55,3750.2,3749.2,1.64393516]
[1717053357462,3.0,3750.7,3749.3,2.5909]
[1717053357797,0.55,3750.6,3749.4,1.29789222]
[1717053358004,3.55066,3750.8,3749.5,0.42348352]
[1717053358220,1.59966,3750.8,3749.6,1.29789222]
[1717053359510,1.59966,3750.8,3749.7,1.60009]
[1717053359690,1.59966,3750.8,3749.8,1.29789222]
[1717053361121,0.55,3750.7,3749.8,1.29789222]
[1717053361921,0.55,3750.7,3749.8,1.63003879]
[1717053364622,0.57696416,3750.9,3750.0,1.59997]
[1717053364938,1.59943,3751.4,3749.9,2.4849]
[1717053365085,1.59954,3751.1,3749.9,3.78279222]
[1717053365492,3.55054,3751.1,3749.9,3.78279222]
[1717053365957,0.57696416,3751.0,3749.9,3.78279222]
[1717053366107,0.55,3750.9,3749.9,3.78279222]
[1717053367801,1.59985,3750.4,3749.4,2.5699]
[1717053368143,0.55,3750.3,3749.4,2.5699]
[1717053370204,1.59985,3750.4,3749.5,1.29789222]
[1717053370408,3.0,3751.0,3749.5,1.29789222]
[1717053370409,1.59961,3751.0,3749.7,2.7539]
[1717053370605,0.57697289,3750.7,3750.1,1.59995]
[1717053370951,1.59937,3751.5,3750.2,1.29789222]
[1717053372467,0.55,3751.4,3750.2,1.29789222]
[1717053374862,2.17634289,3751.5,3750.4,1.59982]
[1717053375032,1.59937,3751.5,3750.5,1.29789222]
[1717053375226,1.59937,3751.5,3750.6,0.54647122]
[1717053375420,1.59937,3751.5,3750.7,1.29789222]
[1717053377266,1.59937,3751.5,3750.6,0.54647122]
[1717053377465,1.59937,3751.5,3750.3,2.567]
[1717053377466,0.55,3751.4,3750.3,2.567]
[1717053377626,0.55,3751.4,3750.4,1.29789222]
[1717053378564,1.5995,3751.2,3750.3,2.567]
[1717053378739,0.55,3751.1,3750.3,3.86489222]
[1717053378926,0.55,3751.1,3750.4,0.38648922]
[1717053380378,1.5996,3751.0,3750.4,0.38648922]
[1717053380539,0.55,3750.9,3749.9,1.60004]
[1717053380861,0.55,3750.9,3750.0,1.29789222]
[1717053381237,1.59985,3750.4,3749.2,3.0896]
[1717053381568,0.55,3750.3,3749.5,1.29789222]
[1717053381871,0.55,3750.3,3749.6,0.14929922]
[1717053382230,2.1767551,3750.4,3749.7,1.29789222]
[1717053382655,1.59985,3750.4,3749.7,1.29789222]
[1717053382851,1.951,3750.9,3749.7,1.29789222]
[1717053382852,0.5769051,3750.7,3749.7,1.29789222]
[1717053383051,0.5769051,3750.8,3749.9,3.1354]
[1717053383255,0.5769051,3750.8,3750.0,1.29789222]
[1717053383439,1.59976,3750.6,3749.8,0.14471914]
[1717053383651,1.59976,3750.6,3749.6,3.37369922]
[1717053383652,2.501,3750.5,3749.6,3.37369922]
[1717053383846,3.0779051,3750.5,3749.6,4.67159144]
[1717053384677,6.2343051,3750.5,3748.9,3.0976]
[1717053384987,1.5999,3750.3,3749.0,1.29789222]
[1717053385297,0.5769051,3750.4,3749.0,1.29789222]
[1717053385298,1.60003,3750.0,3749.0,1.29789222]
[1717053386349,0.55,3750.2,3749.0,1.29789222]
[1717053386686,0.55,3750.2,3749.1,0.59959222]
[1717053386972,0.55,3750.2,3749.2,1.29789222]
[1717053389134,1.59998,3750.1,3749.2,1.29789222]
[1717053389449,1.59998,3750.1,3749.3,1.29789222]
[1717053391731,0.5769051,3750.7,3750.2,1.59987]
[1717053391936,2.1761851,3751.7,3750.4,2.9963]
[1717053392177,2.1761851,3751.7,3750.5,1.29789222]
[1717053392356,1.59928,3751.7,3750.5,1.29789222]
[1717053392558,1.59928,3751.7,3750.6,0.42941922]
[1717053392761,1.59928,3751.7,3750.6,1.72731144]
[1717053393274,3.55028,3751.7,3750.4,2.9963]
[1717053393439,1.59944,3751.4,3750.4,2.9963]
[1717053394471,0.55,3751.3,3750.4,2.9963]
[1717053394879,1.59948,3751.2,3750.2,1.59987]
[1717053395083,3.1758,3750.3,3748.8,7.38]
[1717053395287,3.1758,3750.3,3748.7,15.5789]
[1717053395288,1.951,3750.0,3748.7,4.2832242]
[1717053395492,1.951,3750.0,3748.7,3.2189]
[1717053395935,0.55,3749.9,3748.7,3.2189]
[1717053396338,2.15008,3749.9,3748.7,3.2189]
[1717053396541,2.72687075,3749.9,3748.7,3.2189]
[1717053397688,2.72687075,3749.9,3748.9,1.60046]
[1717053397689,0.57679075,3749.9,3748.9,1.60046]
[1717053397985,1.60009,3749.8,3749.0,0.61172522]
[1717053398183,1.60009,3749.8,3748.7,3.2189]
[1717053398344,4.12788075,3749.8,3748.4,1.60068]
[1717053398679,4.12788075,3749.8,3748.5,1.29789222]
[1717053398680,0.57706503,3749.7,3748.5,1.29789222]
[1717053398881,0.55,3749.6,3748.5,1.29789222]
[1717053399705,1.60031,3749.3,3747.8,10.5675]
[1717053399989,1.60031,3749.3,3747.9,2.81473922]
[1717053399990,1.60038,3749.1,3747.9,2.81473922]
[1717053400142,1.60038,3749.1,3747.9,1.29789222]
[1717053400340,0.55,3749.0,3747.9,1.29789222]
[1717053403003,1.60016,3749.7,3748.0,1.60084]
[1717053403202,1.60016,3749.7,3748.3,1.60068]
[1717053403362,1.60016,3749.7,3748.4,1.29789222]
[1717053404460,0.55,3749.6,3748.4,1.29789222]
[1717053405525,1.60025,3749.4,3748.3,1.60068]
[1717053405664,0.55,3749.3,3748.3,2.89857222]
[1717053405865,0.55,3749.3,3748.4,0.64210954]
[1717053406409,1.60025,3749.4,3748.4,0.64210954]
[1717053410128,1.60042,3749.1,3747.8,1.60093]
[1717053410285,1.60047,3748.9,3747.9,1.29789222]
[1717053412706,1.60047,3748.9,3747.6,3.0023]
[1717053413012,1.60047,3748.9,3747.7,1.59812222]
[1717053413217,1.6006,3748.6,3747.7,1.59812222]
[1717053415112,0.55,3748.5,3747.7,0.30023]
[1717053415319,0.55,3748.5,3747.0,1.60124]
[1717053415625,0.55,3748.5,3747.1,1.29789222]
[1717053417005,0.55,3748.5,3747.2,0.05336599]
[1717053417192,0.55,3748.5,3747.3,1.29789222]
[1717053417394,0.55,3748.5,3747.4,0.13512582]
[1717053418893,1.60072,3748.3,3747.4,0.13512582]
[1717053419530,1.60072,3748.3,3747.0,1.60124]
[1717053419531,0.55,3748.2,3747.0,1.60124]
[1717053419824,1.60082,3748.1,3747.1,1.29789222]
[1717053420030,0.55,3748.2,3746.3,3.0]
[1717053420031,1.60094,3747.8,3746.5,1.60147]
[1717053420266,1.60094,3747.8,3746.6,2.04923922]
[1717053420529,1.60094,3747.8,3746.7,1.60137]
[1717053420698,1.60094,3747.8,3746.8,1.29789222]
[1717053420905,1.60094,3747.8,3746.7,1.60137]
[1717053421219,1.60094,3747.8,3746.7,2.89926222]
[1717053421423,1.60094,3747.8,3746.8,0.36506092]
[1717053422088,1.60094,3747.8,3746.7,1.29789222]
[1717053422423,4.57653,3747.6,3746.3,2.912]
[1717053422743,4.57653,3747.6,3746.4,1.29789222]
[1717053427130,1.60116,3747.3,3745.8,3.0769]
[1717053427333,1.60116,3747.3,3745.9,2.06576522]
[1717053427535,1.60127,3747.1,3745.9,2.06576522]
[1717053427700,1.60127,3747.1,3745.6,1.60183]
[1717053427905,2.501,3747.0,3745.6,1.60183]
[1717053428226,3.55281,3745.8,3743.6,0.4183402]
[1717053428407,3.55302,3745.3,3743.5,3.174]
[1717053428593,1.60216,3745.0,3743.5,3.174]
[1717053429441,0.55,3744.9,3743.6,0.477683]
[1717053429609,3.55,3744.9,3743.6,0.477683]
[1717053429794,5.501,3744.9,3743.6,0.477683]
[1717053429990,5.501,3744.9,3743.3,1.60283]
[1717053430457,1.60222,3744.8,3743.3,1.60283]
[1717053431554,1.60236,3744.5,3742.9,3.0742]
[1717053431747,1.60246,3744.3,3742.9,3.0742]
[1717053431967,0.55,3744.2,3743.0,0.48039575]
[1717053432108,1.60246,3744.3,3743.0,0.48039575]
[1717053433856,1.60246,3744.3,3742.7,1.7297575]
[1717053434258,1.60246,3744.3,3742.9,1.60302]
[1717053434553,1.60246,3744.3,3743.0,1.29789222]
[1717053435458,1.60253,3744.1,3743.0,1.29789222]
[1717053438205,3.1932,3744.7,3743.3,1.29789222]
[1717053438345,7.38,3745.1,3743.6,1.60272]
[1717053438543,2.9999,3745.3,3743.7,1.89907445]
[1717053438760,2.9999,3745.3,3743.8,1.60264]
[1717053438954,1.60207,3745.2,3743.8,1.60264]
[1717053439155,1.60188,3745.6,3744.1,1.29789222]
[1717053439777,0.26532026,3746.5,3743.7,0.60118223]
[1717053439778,3.1,3746.6,3744.5,1.29789222]
[1717053439982,3.1,3746.6,3745.2,1.29789222]
[1717053440164,4.70111,3747.4,3745.5,1.60189]
[1717053440377,4.70111,3747.4,3745.3,0.28999722]
[1717053440378,1.951,3746.9,3745.3,0.28999722]
[1717053440576,4.63527,3746.4,3744.3,1.60239]
[1717053441203,1.951,3745.6,3744.3,1.60239]
[1717053441378,4.63527,3746.4,3744.7,1.29789222]
[1717053441590,1.951,3746.3,3744.7,1.29789222]
[1717053441998,4.951,3746.3,3744.7,1.29789222]
[1717053442392,4.63527,3746.4,3744.8,1.6555835]
[1717053442601,4.63527,3746.4,3745.0,2.89999222]
[1717053442602,1.60157,3746.4,3745.0,2.89999222]
[1717053443409,1.60129,3747.0,3745.5,1.29789222]
[1717053443766,1.60129,3747.0,3745.6,0.05338231]
[1717053443961,1.60129,3747.0,3745.7,1.29789222]
[1717053444198,1.951,3747.6,3745.9,1.29789222]
[1717053444469,4.65422,3747.7,3746.1,1.29789222]
[1717053445927,4.65422,3747.7,3746.2,1.6016]
[1717053446256,4.65422,3747.7,3746.3,1.29789222]
[1717053446539,5.11803534,3748.7,3746.7,1.29789222]
[1717053446540,4.72824,3748.3,3746.7,1.29789222]
[1717053446846,4.72824,3748.3,3746.8,0.28993822]
[1717053447142,4.72824,3748.3,3746.9,1.29789222]
[1717053447716,1.60098,3747.7,3745.8,1.60176]
[1717053447899,1.60098,3747.7,3745.9,1.29789222]
[1717053448098,1.60098,3747.7,3746.2,1.29789222]
[1717053448543,1.761078,3747.7,3746.2,1.29789222]
[1717053449022,1.761078,3747.7,3746.4,1.60153]
[1717053449334,1.761078,3747.7,3746.5,1.29789222]
[1717053450383,1.60106,3747.5,3745.8,1.60178]
[1717053450583,0.55,3747.4,3745.9,1.29789222]
[1717053450886,1.6012,3747.2,3745.9,1.29789222]
[1717053452783,3.0,3747.3,3746.1,2.9331]
[1717053453013,1.60095,3747.8,3746.2,1.29789222]
[1717053453220,1.60095,3747.8,3746.3,1.60155]
[1717053453541,1.60095,3747.8,3746.4,1.88114644]
[1717053453825,1.60095,3747.8,3746.5,1.60149]
[1717053454025,1.60095,3747.8,3746.6,1.29789222]
[1717053454744,1.60095,3747.8,3746.7,0.05337274]
[1717053455034,1.60095,3747.8,3746.8,1.29789222]
[1717053455203,1.60095,3747.8,3746.9,0.1351265]
[1717053455404,1.60095,3747.8,3746.9,1.29789222]
[1717053455628,1.60095,3747.8,3746.5,1.60149]
[1717053455845,0.55,3747.7,3746.6,1.29789222]
[1717053456734,3.0419,3747.5,3745.9,1.60173]
[1717053456936,3.0419,3747.1,3745.3,1.60198]
[1717053457166,1.6016,3746.3,3744.7,1.60223]
[1717053457448,1.6016,3746.3,3744.9,1.60215]
[1717053457660,0.55,3746.2,3745.0,0.29000422]
[1717053458703,0.55,3746.2,3745.1,1.29789222]
[1717053459262,4.78006401,3746.1,3744.3,1.6024]
[1717053459560,1.60191,3745.6,3744.3,1.6024]
[1717053460037,0.55,3745.5,3744.3,1.6024]
[1717053460237,0.215191,3745.4,3744.3,1.6024]
[1717053460426,0.215191,3745.4,3744.4,1.29789222]
[1717053460622,1.60191,3745.6,3744.4,1.29789222]
[1717053461853,1.60191,3745.6,3744.3,1.6024]
[1717053462174,1.60218,3744.9,3743.7,1.60266]
[1717053462452,1.60218,3744.9,3743.7,1.29789222]
[1717053462453,0.55,3744.8,3743.7,1.29789222]
[1717053462652,1.60218,3744.9,3743.8,1.29789222]
[1717053463064,1.60218,3744.9,3743.8,0.29006422]
[1717053463353,1.60218,3744.9,3743.5,1.60275]
[1717053463354,0.55,3744.8,3743.5,1.60275]
[1717053463565,1.60218,3744.9,3743.6,1.29789222]
[1717053464213,3.0,3745.2,3743.7,1.60266]
[1717053464516,3.0,3745.2,3743.9,1.60258]
[1717053464740,3.0593,3745.3,3744.1,1.60251]
[1717053465054,3.0593,3745.3,3744.2,1.29789222]
[1717053470546,7.54016,3746.3,3744.5,1.60233]
[1717053470547,2.9061,3746.0,3744.5,1.60233]
[1717053470863,2.9061,3746.0,3744.7,1.60223]
[1717053471165,3.2241,3746.6,3744.9,1.60214]
[1717053471342,1.6015,3746.5,3744.9,1.60214]
[1717053472313,0.55,3746.4,3744.9,1.60214]
[1717053472517,1.60162,3746.2,3744.9,1.60214]
[1717053472758,1.60162,3746.2,3745.0,1.48710744]
[1717053474560,3.0,3746.5,3745.1,1.65547615]
[1717053474720,3.0,3746.5,3745.2,1.29789222]
[1717053474921,3.0,3746.5,3745.2,1.35128526]
[1717053475136,3.0,3746.5,3745.2,1.29789222]
[1717053475321,3.0,3746.5,3745.3,0.30891874]
[1717053475649,3.0,3746.5,3745.4,1.29789222]
[1717053476748,1.6014,3746.8,3745.5,1.6019]
[1717053476959,1.6014,3746.8,3745.6,1.29789222]
[1717053477277,1.6014,3746.8,3745.7,0.0533885]
[1717053477456,3.0331,3747.1,3745.8,1.59321029]
[1717053477786,3.0331,3747.1,3745.3,0.30891874]
[1717053477787,1.60134,3746.9,3745.3,0.30891874]
[1717053477970,1.60134,3746.9,3745.4,1.29789222]
[1717053478445,1.60149,3746.5,3745.4,1.29789222]
[1717053478638,1.60149,3746.5,3745.5,0.1606811]
[1717053478834,1.60149,3746.5,3745.5,1.45857332]
[1717053479829,1.60149,3746.5,3745.5,1.29789222]
[1717053480639,1.60149,3746.5,3745.1,1.60205]
[1717053480867,0.57761995,3746.6,3745.1,2.89994222]
[1717053480868,1.60159,3746.3,3745.1,2.89994222]
[1717053481644,1.60168,3746.1,3745.1,1.29789222]
[1717053481872,4.60168,3746.1,3745.1,1.29789222]
[1717053482072,4.60168,3746.1,3745.2,1.29789222]
[1717053482504,1.60168,3746.1,3745.2,1.29789222]
[1717053484437,3.0,3746.1,3745.3,1.60199]
[1717053484638,3.0,3746.6,3745.4,1.29789222]
[1717053484834,0.57758555,3746.5,3745.4,1.29789222]
[1717053485041,3.0,3746.6,3745.5,0.28998822]
[1717053485953,0.57758082,3746.5,3745.5,1.58788044]
[1717053488680,0.57759126,3746.5,3745.5,1.58788044]
[1717053489508,0.38982672,3747.1,3745.6,2.89976222]
[1717053489697,0.55,3747.0,3745.8,1.60179]
[1717053489841,2.17874932,3747.2,3745.8,2.89968222]
[1717053489842,0.55,3747.1,3745.8,2.89968222]
[1717053490176,0.55,3747.1,3745.9,1.29789222]
[1717053490872,3.55,3747.1,3745.9,1.29789222]
[1717053491073,0.57754932,3747.0,3745.9,1.65202995]
[1717053491271,1.953,3746.9,3745.0,3.0687]
[1717053491465,1.953,3746.0,3745.1,1.29789222]
[1717053491679,1.60175,3745.9,3744.8,1.6022]
[1717053491892,1.60175,3745.9,3744.8,2.90009222]
[1717053491893,1.957225,3745.9,3744.8,2.90009222]
[1717053492171,4.957225,3745.9,3744.8,2.90009222]
[1717053492774,0.57767054,3745.8,3744.8,2.90009222]
[1717053492971,3.57767054,3745.8,3744.8,2.90009222]
[1717053493314,0.57767054,3745.7,3744.8,2.90009222]
[1717053493502,0.57767054,3745.7,3744.8,1.58790144]
[1717053493676,0.57771455,3745.8,3744.8,1.29789222]
[1717053494071,3.1817,3745.5,3744.3,1.60242]
[1717053494303,3.1817,3745.5,3743.8,8.98264]
[1717053494304,3.57771455,3745.4,3743.8,8.98264]
[1717053494510,5.17969455,3745.4,3744.4,1.29789222]
[1717053494821,0.57775251,3745.3,3744.4,1.29789222]
[1717053495334,4.60198,3745.4,3744.4,1.29789222]
[1717053495478,1.60198,3745.4,3744.4,1.29789222]
[1717053500189,1.60198,3745.4,3743.8,1.60264]
[1717053500430,6.69376,3745.2,3743.9,1.29789222]
[1717053500643,1.60216,3745.0,3743.9,1.29789222]
[1717053500807,2.17992785,3745.0,3743.9,1.29789222]
[1717053501641,2.17992785,3745.0,3743.4,7.38]
[1717053501806,2.17992785,3745.0,3743.2,4.70196]
[1717053501807,1.60223,3744.8,3743.5,2.50608822]
[1717053502158,1.60223,3744.8,3743.2,4.70196]
[1717053502159,1.60235,3744.5,3743.2,1.60286]
[1717053502441,1.60235,3744.5,3743.3,1.29789222]
[1717053502939,1.60235,3744.5,3743.4,0.05342393]
[1717053503159,1.60235,3744.5,3743.5,1.59330983]
[1717053503453,5.0917,3745.2,3743.7,3.2107]
[1717053503454,1.60214,3745.0,3743.7,3.2107]
[1717053503599,1.60214,3745.0,3743.8,1.29789222]
[1717053503803,0.57784362,3745.4,3743.8,1.29789222]
[1717053504050,1.60192,3745.5,3743.9,0.45085922]
[1717053504254,1.60192,3745.5,3744.0,1.29789222]
[1717053504548,1.60192,3745.5,3744.1,0.05340625]
[1717053504725,1.60192,3745.5,3744.2,1.29789222]
[1717053505044,1.60192,3745.5,3744.3,0.13512985]
[1717053505249,1.60192,3745.5,3744.4,1.29789222]
[1717053505450,0.57784362,3745.6,3744.5,1.60231]
[1717053505675,0.57784362,3745.6,3744.6,1.29789222]
[1717053505859,0.57784362,3746.0,3744.6,1.29789222]
[1717053506172,0.57784362,3746.0,3744.7,0.29002022]
[1717053506322,0.57784362,3746.1,3744.8,1.29789222]
[1717053507757,3.57784362,3746.1,3744.8,1.29789222]
[1717053507958,3.0,3746.1,3744.9,0.05340026]
[1717053508157,0.57767808,3746.0,3745.0,0.47626127]
[1717053508360,0.57767808,3746.0,3745.1,1.29789222]
[1717053508626,1.60165,3746.2,3745.1,1.29789222]
[1717053508827,0.57761409,3746.6,3745.3,1.60198]
[1717053509056,0.57761409,3746.6,3745.4,1.58787944]
[1717053509505,1.6014,3746.8,3745.4,1.58787944]
[1717053510184,2.42585959,3746.7,3745.4,1.58787944]
[1717053510503,6.00347368,3746.7,3745.4,1.58787944]
[1717053510800,0.57761409,3746.6,3745.4,1.58787944]
[1717053510977,0.57761409,3746.6,3745.5,0.31898594]
[1717053511295,1.6014,3746.8,3745.5,1.61687816]
[1717053511712,1.953,3746.3,3744.7,4.72353]
[1717053512001,0.55,3746.2,3744.8,1.29789222]
[1717053512206,1.12766261,3746.2,3744.8,1.29789222]
[1717053512364,4.12766261,3746.2,3744.8,1.29789222]
[1717053512792,2.17934261,3746.1,3744.2,3.1963]
[1717053513014,2.17934261,3746.1,3744.5,1.29789222]
[1717053513015,3.55479,3745.9,3744.5,1.29789222]
[1717053513464,3.55,3745.8,3744.5,1.29789222]
[1717053514305,2.17957432,3745.7,3744.5,1.29789222]
[1717053514515,1.60187,3745.7,3744.5,1.29789222]
[1717053514811,0.27278096,3745.6,3744.5,1.29789222]
[1717053515166,2.9341,3745.4,3744.1,1.60248]
[1717053515375,4.12777359,3745.3,3744.1,1.60248]
[1717053515650,3.55,3745.3,3744.1,1.60248]
[1717053515780,4.4209881,3745.3,3744.1,1.762728]
[1717053516366,3.0,3745.3,3744.2,1.29789222]
[1717053516967,4.60204,3745.3,3744.2,1.29789222]
[1717053518175,0.57776876,3745.2,3744.2,1.29789222]
[1717053524821,0.57776876,3745.2,3744.4,1.60237]
[1717053524972,0.57776876,3745.8,3744.5,1.29789222]
[1717053525171,0.57776876,3745.8,3744.6,3.30502622]
[1717053525372,0.57776876,3745.8,3744.7,1.29789222]
[1717053526817,4.81269,3745.9,3744.7,1.29789222]
[1717053527029,3.57766557,3745.8,3744.7,1.29789222]
[1717053527220,0.57766557,3745.8,3744.8,0.46029184]
[1717053527417,1.60179,3745.9,3744.9,1.29789222]
[1717053527824,0.57766557,3746.2,3744.9,2.90005222]
[1717053528024,0.57766557,3746.3,3744.9,2.90005222]
[1717053528236,0.57766557,3746.3,3745.0,0.33603441]
[1717053528441,0.57766557,3746.3,3745.1,1.29789222]
[1717053528830,1.60152,3746.5,3745.1,1.29789222]
[1717053529210,1.60152,3746.5,3745.2,1.60204]
[1717053529416,1.60152,3746.5,3745.3,1.29789222]
[1717053529645,2.17918557,3746.5,3745.4,0.28999322]
[1717053529919,2.17918557,3746.5,3745.5,1.29789222]
[1717053530113,1.60152,3746.5,3745.5,1.29789222]
[1717053531415,0.57766557,3746.7,3745.6,1.60186]
[1717053531620,0.57766557,3746.7,3745.7,4.36289222]
[1717053531951,0.57766557,3746.8,3745.8,0.59647522]
[1717053532129,0.57766557,3746.8,3745.8,1.89436744]
[1717053533358,0.57766557,3746.8,3745.9,1.29789222]
[1717053533947,1.60127,3747.1,3745.9,1.29789222]
[1717053535213,3.55441,3746.7,3745.2,3.1584]
[1717053535417,3.57755145,3746.6,3745.3,1.80754566]
[1717053535665,3.0,3746.6,3745.3,1.80754566]
[1717053535963,0.57758894,3746.5,3745.3,1.80754566]
[1717053537035,4.60846,3746.4,3745.3,1.29789222]
[1717053537231,3.57758894,3746.3,3745.3,1.29789222]
[1717053537658,0.57758894,3746.2,3745.3,1.29789222]
[1717053538231,0.57758894,3746.2,3745.0,1.93813441]
[1717053538424,0.57758894,3746.2,3745.1,1.29789222]
[1717053538821,3.0,3746.3,3745.1,1.29789222]
[1717053539058,0.57764552,3746.2,3745.1,1.29789222]
[1717053539864,1.60164,3746.2,3745.1,1.29789222]
[1717053540061,2.1792793,3746.2,3745.1,1.29789222]
[1717053540270,2.1792793,3746.2,3745.2,0.28999922]
[1717053540971,2.17928614,3746.2,3744.6,3.0588]
[1717053541136,2.17928614,3746.2,3744.7,1.29789222]
[1717053541541,1.60182,3745.8,3744.0,1.60255]
[1717053541775,1.60182,3745.8,3744.1,1.29789222]
[1717053541776,1.60199,3745.4,3744.1,1.29789222]
[1717053542066,1.60199,3745.4,3744.3,1.60242]
[1717053542223,1.60199,3745.4,3744.4,1.29789222]
[1717053542423,3.0,3745.8,3744.4,1.29789222]
[1717053542652,0.57770807,3745.7,3744.4,1.29789222]
[1717053542963,0.57770807,3745.7,3744.5,0.29003122]
[1717053543163,0.57770807,3745.7,3744.6,1.29789222]
[1717053543535,2.17955807,3745.7,3744.0,0.453575]
[1717053543738,1.602,3745.4,3744.1,1.29789222]
[1717053544141,2.17970807,3745.4,3744.1,1.29789222]
[1717053544344,1.60212,3745.1,3744.1,1.29789222]
[1717053545069,3.55512,3745.1,3743.2,1.60286]
[1717053545259,3.55529,3744.7,3743.3,1.29789222]
[1717053545458,0.55,3744.6,3743.3,1.29789222]
[1717053545783,3.55,3744.6,3743.4,0.58630522]
[1717053546477,3.0,3744.6,3743.5,1.29789222]
[1717053546771,1.60229,3744.7,3743.5,1.29789222]
[1717053547155,1.60229,3744.7,3743.4,0.58630522]
[1717053547469,0.55,3744.6,3743.4,0.58630522]
[1717053547641,0.27301698,3744.5,3743.4,0.58630522]
[1717053547849,0.55,3744.6,3743.4,0.58630522]
[1717053548045,1.60237,3744.5,3743.4,0.58630522]
[1717053548249,0.55,3744.4,3743.2,1.60286]
[1717053548587,0.55,3744.4,3743.2,2.90075222]
[1717053549174,3.55,3744.4,3743.2,2.90075222]
[1717053549468,0.55,3744.4,3743.2,2.90075222]
[1717053551636,1.60237,3744.5,3743.3,1.29789222]
[1717053551838,1.60237,3744.5,3743.4,0.29007522]
[1717053553341,1.60237,3744.5,3743.2,1.60286]
[1717053553538,1.60237,3744.5,3743.2,2.90075222]
[1717053555383,0.55,3744.4,3742.8,3.0001]
[1717053555590,3.2151,3744.1,3742.9,1.29789222]
[1717053555812,3.2151,3744.1,3742.6,1.60313]
[1717053555813,3.5556,3743.9,3742.6,1.60313]
[1717053556307,1.6027,3743.7,3742.3,3.0835]
[1717053556584,1.6027,3743.7,3742.7,1.42454972]
[1717053557449,1.6027,3743.7,3742.7,0.1266575]
[1717053557682,3.0,3743.8,3742.7,0.1266575]
[1717053557683,1.953,3743.2,3742.7,0.1266575]
[1717053558853,3.0,3743.4,3742.7,0.1266575]
[1717053559052,4.60278,3743.5,3742.7,0.1266575]
[1717053559600,4.60278,3743.5,3742.7,1.42454972]
[1717053559744,1.60278,3743.5,3742.7,1.42454972]
[1717053560089,4.68756,3744.0,3742.8,1.44034719]
[1717053560474,6.64056,3744.0,3742.8,1.44034719]
[1717053561788,3.0,3743.9,3742.8,1.44034719]
[1717053562088,1.953,3743.6,3742.7,0.1266575]
[1717053562290,1.953,3743.6,3742.7,1.42454972]
[1717053562498,2.15277,3743.5,3742.7,0.1266575]
[1717053562705,5.15277,3743.5,3742.7,0.1266575]
[1717053562858,1.953,3743.2,3742.7,0.1266575]
[1717053563507,5.0976,3743.2,3742.7,0.1266575]
[1717053563651,3.0,3743.1,3742.7,0.1266575]
[1717053564401,4.60297,3743.1,3742.7,0.1266575]
[1717053567071,2.9839,3743.7,3742.7,0.1266575]
[1717053567072,1.60274,3743.6,3742.7,0.1266575]
[1717053567310,7.38,3744.2,3742.8,1.35132455]
[1717053567311,1.60253,3744.1,3742.8,1.35132455]
[1717053567598,4.13358686,3744.1,3742.8,1.29789222]
[1717053567768,3.55553,3744.1,3742.8,1.29789222]
[1717053567977,3.55553,3744.1,3742.9,0.17404155]
[1717053568194,3.55553,3744.1,3743.0,1.29789222]
[1717053568405,1.60231,3744.6,3743.1,4.76896465]
[1717053568557,0.57796561,3744.7,3743.3,1.60282]
[1717053568756,0.57796561,3744.7,3743.5,1.60277]
[1717053568956,0.57796561,3744.7,3743.7,1.60266]
[1717053569152,1.60209,3745.2,3743.8,1.29789222]
[1717053569869,0.57783732,3745.4,3743.9,4.78017112]
[1717053570093,0.57783732,3745.5,3744.2,1.60245]
[1717053570398,1.60182,3745.8,3744.4,1.60238]
[1717053570613,1.60182,3745.8,3744.5,1.29789222]
[1717053571098,1.60182,3745.8,3744.6,0.05340157]
[1717053571256,1.60182,3745.8,3744.7,1.29789222]
[1717053571451,2.43068395,3745.8,3744.7,1.29789222]
[1717053571703,1.60194,3745.5,3743.9,3.1242]
[1717053571999,1.953,3745.1,3744.0,1.29789222]
[1717053572354,0.57768961,3745.3,3744.0,1.29789222]
[1717053572870,0.57768961,3745.4,3744.0,1.29789222]
[1717053573201,0.57768961,3745.4,3744.1,0.60247022]
[1717053573500,0.57768961,3745.4,3744.2,2.90034222]
[1717053573686,1.60194,3745.5,3744.2,2.90034222]
[1717053581399,1.60194,3745.5,3742.9,2.78104155]